[Event "*** Titled Tuesday Blitz"]
[Site "Chess.com"]
[Date "2020.03.03"]
[Round "8"]
[White "yoolund"]
[Black "MaxLeto"]
[Result "0-1"]
[WhiteElo "2592"]
[BlackElo "2420"]
[TimeControl "180+1"]
[EndTime "10:29:30 PST"]
[Termination "MaxLeto won by resignation"]

1. d4 {[%clk 0:03:00.9]} 1... d5 {[%clk 0:02:59.6]} 2. c4 {[%clk 0:03:00.6]}
2... c6 {[%clk 0:03:00.2]} 3. Nc3 {[%clk 0:03:00.8]} 3... Nf6 {[%clk 0:03:00.5]}
4. e3 {[%clk 0:03:01.2]} 4... g6 {[%clk 0:02:56.5]} 5. Nf3 {[%clk 0:03:00.7]}
5... Bg7 {[%clk 0:02:56.9]} 6. h3 {[%clk 0:03:00.8]} 6... O-O {[%clk 0:02:56.4]}
7. Bd3 {[%clk 0:03:00.4]} 7... Bf5 {[%clk 0:02:55.8]} 8. Bxf5 {[%clk 0:02:59.4]}
8... gxf5 {[%clk 0:02:56.7]} 9. Qd3 {[%clk 0:02:52.1]} 9... e6 {[%clk
0:01:48.7]} 10. g4 {[%clk 0:02:50.9]} 10... dxc4 {[%clk 0:01:47.3]} 11. Qxc4
{[%clk 0:02:37.5]} 11... fxg4 {[%clk 0:01:47.1]} 12. hxg4 {[%clk 0:02:38.4]}
12... Nxg4 {[%clk 0:01:47.4]} 13. Bd2 {[%clk 0:02:33.1]} 13... Nd7 {[%clk
0:01:39.1]} 14. Qe2 {[%clk 0:02:21.8]} 14... e5 {[%clk 0:01:33.5]} 15. O-O-O
{[%clk 0:02:18.1]} 15... f5 {[%clk 0:00:45.4]} 16. Rdg1 {[%clk 0:01:39]} 16...
e4 {[%clk 0:00:41.3]} 17. Nh4 {[%clk 0:01:15.7]} 17... Qg5 {[%clk 0:00:34.1]}
18. Nxe4 {[%clk 0:01:02.1]} 18... fxe4 {[%clk 0:00:11.7]} 19. Rxg4 {[%clk
0:01:00.8]} 19... Qd5 {[%clk 0:00:12.4]} 20. Rhg1 {[%clk 0:00:34.6]} 20... Rf7
{[%clk 0:00:12.8]} 21. Rg5 {[%clk 0:00:18.9]} 21... Qxa2 {[%clk 0:00:11.4]} 22.
Qg4 {[%clk 0:00:18.8]} 22... Qa1+ {[%clk 0:00:05.6]} 23. Kc2 {[%clk 0:00:18]}
23... Qa4+ {[%clk 0:00:06]} 24. Kb1 {[%clk 0:00:17.5]} 24... Kh8 {[%clk
0:00:02.5]} 25. Rxg7 {[%clk 0:00:15.6]} 25... Nf6 {[%clk 0:00:02.9]} 26. Qg5
{[%clk 0:00:09.1]} 26... Qc4 {[%clk 0:00:02.2]} 27. Rxf7 {[%clk 0:00:05.9]}
27... Qxf7 {[%clk 0:00:03.1]} 28. Qe5 {[%clk 0:00:04.7]} 28... Re8 {[%clk
0:00:02.6]} 29. Qf5 {[%clk 0:00:04.5]} 29... Qe7 {[%clk 0:00:02.4]} 30. d5
{[%clk 0:00:03.6]} 30... Nxd5 {[%clk 0:00:02.6]} 31. Ng6+ {[%clk 0:00:02.7]}
31... hxg6 {[%clk 0:00:02.5]} 32. Qxg6 {[%clk 0:00:03.6]} 32... Qh7 {[%clk
0:00:02.3]} 33. Rh1 {[%clk 0:00:04.5]} 33... Qxh1+ {[%clk 0:00:02.3]} 34. Ka2
{[%clk 0:00:05.4]} 34... Qh7 {[%clk 0:00:03.2]} 35. Qg5 {[%clk 0:00:04.7]} 35...
Qg7 {[%clk 0:00:03.4]} 36. Bc3 {[%clk 0:00:05.6]} 36... Nxc3+ {[%clk 0:00:02.9]}
37. bxc3 {[%clk 0:00:06.5]} 37... Qxg5 {[%clk 0:00:03.5]} 38. Kb3 {[%clk
0:00:06.5]} 38... Qc5 {[%clk 0:00:04.4]} 0-1

[Event "*** Titled Tuesday Blitz"]
[Site "Chess.com"]
[Date "2020.03.03"]
[Round "8"]
[White "floplover"]
[Black "riconaipe"]
[Result "1-0"]
[WhiteElo "2349"]
[BlackElo "2575"]
[TimeControl "180+1"]
[EndTime "10:29:31 PST"]
[Termination "floplover won by resignation"]

1. d4 {[%clk 0:03:00.9]} 1... e6 {[%clk 0:02:59.8]} 2. c4 {[%clk 0:03:00.4]}
2... d5 {[%clk 0:02:59.8]} 3. Nc3 {[%clk 0:02:59.9]} 3... Bb4 {[%clk 0:02:59.8]}
4. Nf3 {[%clk 0:02:55.5]} 4... Ne7 {[%clk 0:02:59.5]} 5. cxd5 {[%clk 0:02:48.1]}
5... exd5 {[%clk 0:02:57.5]} 6. Bf4 {[%clk 0:02:43.2]} 6... c6 {[%clk
0:02:50.6]} 7. e3 {[%clk 0:02:40.7]} 7... O-O {[%clk 0:02:50.2]} 8. Bd3 {[%clk
0:02:40]} 8... Bf5 {[%clk 0:02:50.4]} 9. O-O {[%clk 0:02:37.6]} 9... Nd7 {[%clk
0:02:48.6]} 10. Qc2 {[%clk 0:02:35]} 10... Bxd3 {[%clk 0:02:45.5]} 11. Qxd3
{[%clk 0:02:35.9]} 11... Ng6 {[%clk 0:02:43.8]} 12. Bg3 {[%clk 0:02:34.7]} 12...
Re8 {[%clk 0:02:40.8]} 13. a3 {[%clk 0:02:28.7]} 13... Ba5 {[%clk 0:02:39.8]}
14. Rac1 {[%clk 0:02:24.5]} 14... Nf6 {[%clk 0:02:38.7]} 15. b4 {[%clk
0:02:14.3]} 15... Bc7 {[%clk 0:02:37]} 16. Bxc7 {[%clk 0:02:14.9]} 16... Qxc7
{[%clk 0:02:37.3]} 17. b5 {[%clk 0:02:15.4]} 17... Qd6 {[%clk 0:02:33.1]} 18.
bxc6 {[%clk 0:02:13.2]} 18... bxc6 {[%clk 0:02:34]} 19. Na4 {[%clk 0:02:07.9]}
19... Ne4 {[%clk 0:02:34.2]} 20. Nc5 {[%clk 0:02:08.4]} 20... Rab8 {[%clk
0:02:31.1]} 21. Nd2 {[%clk 0:01:59.3]} 21... f5 {[%clk 0:02:26.8]} 22. Ndxe4
{[%clk 0:01:53.6]} 22... fxe4 {[%clk 0:02:19]} 23. Qa6 {[%clk 0:01:54.1]} 23...
Nh4 {[%clk 0:02:14.6]} 24. Qxa7 {[%clk 0:01:38.4]} 24... Qg6 {[%clk 0:02:13.4]}
25. g3 {[%clk 0:01:33.2]} 25... Nf3+ {[%clk 0:02:11.6]} 26. Kg2 {[%clk
0:01:33.1]} 26... Rb2 {[%clk 0:01:56.9]} 27. Rb1 {[%clk 0:01:22.1]} 27... Nh4+
{[%clk 0:01:33]} 28. Kh1 {[%clk 0:01:10.1]} 28... Qf5 {[%clk 0:00:54.6]} 29.
gxh4 {[%clk 0:01:03.5]} 29... Qf3+ {[%clk 0:00:46]} 30. Kg1 {[%clk 0:01:03.2]}
30... Qg4+ {[%clk 0:00:46.9]} 31. Kh1 {[%clk 0:01:02.8]} 31... Qh3 {[%clk
0:00:31.4]} 32. Qd7 {[%clk 0:00:44.2]} 32... Qf3+ {[%clk 0:00:28.1]} 33. Kg1
{[%clk 0:00:43.4]} 33... Rbb8 {[%clk 0:00:24.2]} 34. Rb7 {[%clk 0:00:31.7]}
34... Qf6 {[%clk 0:00:18.9]} 35. Rxb8 {[%clk 0:00:25.6]} 35... Rxb8 {[%clk
0:00:18.7]} 36. Qe6+ {[%clk 0:00:26.2]} 36... Qxe6 {[%clk 0:00:15.3]} 37. Nxe6
{[%clk 0:00:27.1]} 37... Ra8 {[%clk 0:00:13.5]} 38. Rc1 {[%clk 0:00:26.6]} 38...
Ra6 {[%clk 0:00:13.3]} 39. Nd8 {[%clk 0:00:25.2]} 39... Rxa3 {[%clk 0:00:12.8]}
40. Nxc6 {[%clk 0:00:24.6]} 40... Kf7 {[%clk 0:00:12.7]} 41. Ne5+ {[%clk
0:00:24.6]} 41... Ke6 {[%clk 0:00:13.2]} 42. Rc7 {[%clk 0:00:24.4]} 42... Kf5
{[%clk 0:00:13.7]} 43. Rxg7 {[%clk 0:00:24.4]} 43... h6 {[%clk 0:00:13]} 44. Kg2
{[%clk 0:00:23.8]} 44... Ra1 {[%clk 0:00:12.5]} 45. Rh7 {[%clk 0:00:22.7]} 45...
Rb1 {[%clk 0:00:07.4]} 46. Rd7 {[%clk 0:00:20.5]} 46... Ke6 {[%clk 0:00:07.2]}
47. Ra7 {[%clk 0:00:20]} 47... Kf5 {[%clk 0:00:07.4]} 48. h5 {[%clk 0:00:17.1]}
48... Ke6 {[%clk 0:00:07.4]} 49. Ra6+ {[%clk 0:00:16.8]} 49... Kf5 {[%clk
0:00:07.7]} 50. Rxh6 {[%clk 0:00:17]} 50... Rg1+ {[%clk 0:00:07.6]} 51. Kxg1
{[%clk 0:00:16.6]} 51... Kg5 {[%clk 0:00:06.3]} 1-0

[Event "*** Titled Tuesday Blitz"]
[Site "Chess.com"]
[Date "2020.03.03"]
[Round "8"]
[White "mrkvoz"]
[Black "Shield12"]
[Result "1-0"]
[WhiteElo "2785"]
[BlackElo "2880"]
[TimeControl "180+1"]
[EndTime "10:29:37 PST"]
[Termination "mrkvoz won by resignation"]

1. e4 {[%clk 0:03:00.9]} 1... c5 {[%clk 0:02:59.8]} 2. Nc3 {[%clk 0:02:58.5]}
2... Nc6 {[%clk 0:02:59.8]} 3. Bb5 {[%clk 0:02:55.9]} 3... Nd4 {[%clk
0:02:59.7]} 4. Nf3 {[%clk 0:02:56]} 4... a6 {[%clk 0:02:58.6]} 5. Bd3 {[%clk
0:02:55.8]} 5... Nc6 {[%clk 0:02:50.1]} 6. O-O {[%clk 0:02:55.2]} 6... g6 {[%clk
0:02:47.9]} 7. a4 {[%clk 0:02:52.5]} 7... Bg7 {[%clk 0:02:48.1]} 8. Bc4 {[%clk
0:02:52.8]} 8... e6 {[%clk 0:02:46.8]} 9. d3 {[%clk 0:02:51.1]} 9... Nge7 {[%clk
0:02:46.5]} 10. Bg5 {[%clk 0:02:50.9]} 10... h6 {[%clk 0:02:45.5]} 11. Be3
{[%clk 0:02:51]} 11... d5 {[%clk 0:02:43.7]} 12. exd5 {[%clk 0:02:49.5]} 12...
exd5 {[%clk 0:02:41.7]} 13. Nxd5 {[%clk 0:02:49.6]} 13... Nxd5 {[%clk
0:02:39.7]} 14. Bxc5 {[%clk 0:02:49.8]} 14... Be6 {[%clk 0:02:30.4]} 15. Re1
{[%clk 0:02:49.5]} 15... Qd7 {[%clk 0:02:30.6]} 16. c3 {[%clk 0:02:46.8]} 16...
O-O-O {[%clk 0:02:29.5]} 17. d4 {[%clk 0:02:44.9]} 17... Rhe8 {[%clk 0:02:26.2]}
18. Bf1 {[%clk 0:02:27.1]} 18... Bg4 {[%clk 0:02:03]} 19. Rxe8 {[%clk 0:02:26]}
19... Rxe8 {[%clk 0:02:02.6]} 20. h3 {[%clk 0:02:26.5]} 20... Bf5 {[%clk
0:02:02.4]} 21. Nd2 {[%clk 0:02:23.5]} 21... Bf8 {[%clk 0:01:54.2]} 22. Nc4
{[%clk 0:02:21.8]} 22... Bxc5 {[%clk 0:01:52.3]} 23. dxc5 {[%clk 0:02:21.8]}
23... Kb8 {[%clk 0:01:52.1]} 24. Nd6 {[%clk 0:02:20.9]} 24... Re5 {[%clk
0:01:43.2]} 25. Qd2 {[%clk 0:01:56.9]} 25... Nf6 {[%clk 0:01:40.8]} 26. Qxh6
{[%clk 0:01:30.5]} 26... Ka7 {[%clk 0:01:39.6]} 27. b4 {[%clk 0:01:26.6]} 27...
Ne4 {[%clk 0:01:37.5]} 28. b5 {[%clk 0:01:07.7]} 28... Nxd6 {[%clk 0:01:17.8]}
29. bxc6 {[%clk 0:01:06.8]} 29... Qxc6 {[%clk 0:01:17.7]} 30. cxd6 {[%clk
0:01:07]} 30... Qxd6 {[%clk 0:01:18.6]} 31. Qf4 {[%clk 0:01:00]} 31... Qc5
{[%clk 0:01:17.5]} 32. c4 {[%clk 0:00:47.1]} 32... Re4 {[%clk 0:01:15]} 33. Qd2
{[%clk 0:00:43.9]} 33... Be6 {[%clk 0:01:12.4]} 34. Rc1 {[%clk 0:00:39.4]} 34...
g5 {[%clk 0:01:10.5]} 35. Be2 {[%clk 0:00:29.4]} 35... Rf4 {[%clk 0:01:05.7]}
36. Qe3 {[%clk 0:00:24.6]} 36... Qxe3 {[%clk 0:01:03.9]} 37. fxe3 {[%clk
0:00:25.5]} 37... Re4 {[%clk 0:01:04.1]} 38. Kf2 {[%clk 0:00:25.8]} 38... a5
{[%clk 0:01:04.4]} 39. Bd3 {[%clk 0:00:23.1]} 39... Re5 {[%clk 0:01:03.6]} 40.
e4 {[%clk 0:00:23.3]} 40... Bd7 {[%clk 0:01:02.8]} 41. Ra1 {[%clk 0:00:20.3]}
41... Kb6 {[%clk 0:01:02]} 42. Rb1+ {[%clk 0:00:18.9]} 42... Kc7 {[%clk
0:01:00.1]} 43. Ke3 {[%clk 0:00:17.8]} 43... Bxa4 {[%clk 0:00:59.5]} 44. Kd4
{[%clk 0:00:18.2]} 44... Re7 {[%clk 0:00:57]} 45. Ra1 {[%clk 0:00:18.4]} 45...
Bc6 {[%clk 0:00:49.9]} 46. Rxa5 {[%clk 0:00:19.3]} 46... f6 {[%clk 0:00:50.1]}
47. Rf5 {[%clk 0:00:13.7]} 47... Re6 {[%clk 0:00:49.8]} 48. g3 {[%clk 0:00:14]}
48... Kd6 {[%clk 0:00:48.7]} 49. h4 {[%clk 0:00:14.1]} 49... gxh4 {[%clk
0:00:49.6]} 50. gxh4 {[%clk 0:00:15]} 50... Ke7 {[%clk 0:00:50.5]} 51. e5 {[%clk
0:00:14.2]} 51... Kf7 {[%clk 0:00:36.8]} 52. Rxf6+ {[%clk 0:00:12.8]} 52... Rxf6
{[%clk 0:00:36.7]} 53. exf6 {[%clk 0:00:13.4]} 53... Kxf6 {[%clk 0:00:37.6]} 54.
Be4 {[%clk 0:00:13.8]} 1-0

[Event "*** Titled Tuesday Blitz"]
[Site "Chess.com"]
[Date "2020.03.03"]
[Round "8"]
[White "mortngabriel"]
[Black "Ginger_GM"]
[Result "0-1"]
[WhiteElo "2396"]
[BlackElo "2581"]
[TimeControl "180+1"]
[EndTime "10:29:38 PST"]
[Termination "Ginger_GM won on time"]

1. d4 {[%clk 0:03:00.9]} 1... e6 {[%clk 0:02:59.2]} 2. Nc3 {[%clk 0:02:58]} 2...
d5 {[%clk 0:02:55.5]} 3. e4 {[%clk 0:02:57.7]} 3... Nf6 {[%clk 0:02:55.1]} 4. e5
{[%clk 0:02:57.8]} 4... Nfd7 {[%clk 0:02:54.7]} 5. f4 {[%clk 0:02:57.3]} 5... c5
{[%clk 0:02:54]} 6. Nf3 {[%clk 0:02:58.2]} 6... Nc6 {[%clk 0:02:53.9]} 7. Be3
{[%clk 0:02:57.7]} 7... Be7 {[%clk 0:02:53.9]} 8. Qd2 {[%clk 0:02:55.1]} 8...
O-O {[%clk 0:02:52.8]} 9. dxc5 {[%clk 0:02:41.2]} 9... Qa5 {[%clk 0:02:48]} 10.
Nb5 {[%clk 0:02:26.3]} 10... Qxd2+ {[%clk 0:02:33.4]} 11. Kxd2 {[%clk
0:02:27.2]} 11... Nxc5 {[%clk 0:02:32.3]} 12. Bd3 {[%clk 0:02:14.7]} 12... Bd7
{[%clk 0:02:23.7]} 13. Nbd4 {[%clk 0:02:03.1]} 13... f6 {[%clk 0:02:11.5]} 14.
c3 {[%clk 0:01:52.2]} 14... a5 {[%clk 0:02:04.9]} 15. Rhe1 {[%clk 0:01:36.6]}
15... Rad8 {[%clk 0:01:53.5]} 16. Rad1 {[%clk 0:01:33.1]} 16... f5 {[%clk
0:01:48.8]} 17. h3 {[%clk 0:01:25.2]} 17... Ne4+ {[%clk 0:01:47.9]} 18. Kc2
{[%clk 0:01:18.9]} 18... Rc8 {[%clk 0:01:43]} 19. Kb1 {[%clk 0:01:12.4]} 19...
Rb8 {[%clk 0:01:35.5]} 20. g4 {[%clk 0:01:08.5]} 20... g6 {[%clk 0:01:29.8]} 21.
Nb5 {[%clk 0:00:55.2]} 21... Kh8 {[%clk 0:01:09.1]} 22. g5 {[%clk 0:00:54.4]}
22... h5 {[%clk 0:01:02.4]} 23. c4 {[%clk 0:00:40.3]} 23... Nb4 {[%clk
0:00:58.9]} 24. Bxe4 {[%clk 0:00:26.8]} 24... fxe4 {[%clk 0:00:59.1]} 25. Nh4
{[%clk 0:00:25.3]} 25... Kg7 {[%clk 0:00:55.4]} 26. Nc3 {[%clk 0:00:23.3]} 26...
Bc6 {[%clk 0:00:50.5]} 27. Re2 {[%clk 0:00:07.6]} 27... Nd3 {[%clk 0:00:45.1]}
28. Bd4 {[%clk 0:00:06.2]} 28... Nxf4 {[%clk 0:00:40.8]} 29. Rh2 {[%clk
0:00:03.7]} 29... Bxg5 {[%clk 0:00:38.7]} 30. Ng2 {[%clk 0:00:02.2]} 30... Kh6
{[%clk 0:00:27.3]} 31. Nxf4 {[%clk 0:00:02.1]} 31... Bxf4 {[%clk 0:00:26.8]} 32.
Rg2 {[%clk 0:00:03]} 32... g5 {[%clk 0:00:25.9]} 33. cxd5 {[%clk 0:00:02.8]}
33... exd5 {[%clk 0:00:25.5]} 34. h4 {[%clk 0:00:03.7]} 34... g4 {[%clk
0:00:25.3]} 35. e6 {[%clk 0:00:03.6]} 35... Rbe8 {[%clk 0:00:24]} 36. Ne2 {[%clk
0:00:03.5]} 36... Bc7 {[%clk 0:00:21.6]} 37. Bc5 {[%clk 0:00:02.5]} 37... Rf6
{[%clk 0:00:19.6]} 38. e7 {[%clk 0:00:02.5]} 38... b6 {[%clk 0:00:18.9]} 39. Bd4
{[%clk 0:00:02.4]} 39... Rf7 {[%clk 0:00:18.5]} 40. Ng3 {[%clk 0:00:02]} 40...
Rexe7 {[%clk 0:00:18.4]} 41. Rc1 {[%clk 0:00:02]} 41... Bxg3 {[%clk 0:00:18]}
42. Rxg3 {[%clk 0:00:01.7]} 42... Bd7 {[%clk 0:00:18.4]} 43. Re3 {[%clk
0:00:01.6]} 43... Rf3 {[%clk 0:00:18.2]} 44. a3 {[%clk 0:00:02.5]} 44... Ref7
{[%clk 0:00:17.2]} 45. Rc7 {[%clk 0:00:02.2]} 45... Kg6 {[%clk 0:00:15.4]} 46.
Ka2 {[%clk 0:00:02]} 46... g3 {[%clk 0:00:15.8]} 47. Rxf3 {[%clk 0:00:02.1]}
47... exf3 {[%clk 0:00:13.3]} 48. Rc1 {[%clk 0:00:03]} 48... Kf5 {[%clk
0:00:13.1]} 0-1

[Event "*** Titled Tuesday Blitz"]
[Site "Chess.com"]
[Date "2020.03.03"]
[Round "8"]
[White "talman67"]
[Black "SanchezKelvin"]
[Result "0-1"]
[WhiteElo "2540"]
[BlackElo "2360"]
[TimeControl "180+1"]
[EndTime "10:29:39 PST"]
[Termination "SanchezKelvin won on time"]

1. e4 {[%clk 0:03:00.9]} 1... c5 {[%clk 0:02:58.2]} 2. Nf3 {[%clk 0:03:00.6]}
2... d6 {[%clk 0:02:57.3]} 3. d4 {[%clk 0:03:01]} 3... cxd4 {[%clk 0:02:52.9]}
4. Nxd4 {[%clk 0:03:01.9]} 4... Nf6 {[%clk 0:02:49.7]} 5. Nc3 {[%clk 0:03:02.3]}
5... g6 {[%clk 0:02:47.9]} 6. Be3 {[%clk 0:03:01.7]} 6... Bg7 {[%clk 0:02:46.1]}
7. f3 {[%clk 0:03:01.7]} 7... O-O {[%clk 0:02:44.9]} 8. Qd2 {[%clk 0:03:01.7]}
8... Nc6 {[%clk 0:02:44.6]} 9. O-O-O {[%clk 0:03:00.4]} 9... Nxd4 {[%clk
0:02:44.5]} 10. Bxd4 {[%clk 0:03:00.4]} 10... Be6 {[%clk 0:02:45.1]} 11. h4
{[%clk 0:02:53.7]} 11... Qa5 {[%clk 0:02:43.3]} 12. a3 {[%clk 0:02:51.5]} 12...
Rfc8 {[%clk 0:02:30.7]} 13. h5 {[%clk 0:02:39.1]} 13... Rab8 {[%clk 0:02:21.3]}
14. hxg6 {[%clk 0:02:36.9]} 14... fxg6 {[%clk 0:02:19.6]} 15. g4 {[%clk
0:02:28.2]} 15... b5 {[%clk 0:02:16.6]} 16. e5 {[%clk 0:01:59.8]} 16... dxe5
{[%clk 0:01:56.8]} 17. Qe3 {[%clk 0:01:59.7]} 17... b4 {[%clk 0:01:52.6]} 18.
axb4 {[%clk 0:01:55.8]} 18... Rxb4 {[%clk 0:01:49.8]} 19. Qxe5 {[%clk
0:01:31.2]} 19... Qa1+ {[%clk 0:01:45.4]} 20. Nb1 {[%clk 0:01:31]} 20... Ba2
{[%clk 0:01:40.9]} 21. Kd2 {[%clk 0:01:22]} 21... Ne4+ {[%clk 0:01:15.3]} 22.
Qxe4 {[%clk 0:00:46.3]} 22... Rxd4+ {[%clk 0:01:13.4]} 23. Bd3 {[%clk 0:00:45]}
23... Rxe4 {[%clk 0:01:12.9]} 24. Bxe4 {[%clk 0:00:45.5]} 24... Bxb1 {[%clk
0:01:06.7]} 25. Rxb1 {[%clk 0:00:35.9]} 25... Qa5+ {[%clk 0:01:05]} 26. c3
{[%clk 0:00:33.4]} 26... Rd8+ {[%clk 0:00:52.2]} 27. Ke2 {[%clk 0:00:31.3]}
27... Qb5+ {[%clk 0:00:51.6]} 28. Ke3 {[%clk 0:00:26.6]} 28... Qc5+ {[%clk
0:00:47.5]} 29. Ke2 {[%clk 0:00:26.6]} 29... Qc4+ {[%clk 0:00:45.9]} 30. Ke3
{[%clk 0:00:25.8]} 30... Qc5+ {[%clk 0:00:37.6]} 31. Ke2 {[%clk 0:00:25.5]}
31... Qg5 {[%clk 0:00:28.5]} 32. Rbd1 {[%clk 0:00:21.8]} 32... e6 {[%clk
0:00:28.1]} 33. Rxd8+ {[%clk 0:00:17.1]} 33... Qxd8 {[%clk 0:00:29]} 34. Rd1
{[%clk 0:00:17.7]} 34... Qb6 {[%clk 0:00:29.1]} 35. b4 {[%clk 0:00:15.5]} 35...
Bxc3 {[%clk 0:00:28.1]} 36. Rd7 {[%clk 0:00:05.1]} 36... Bxb4 {[%clk 0:00:27.6]}
37. Rb7 {[%clk 0:00:04.8]} 37... Qa6+ {[%clk 0:00:26.5]} 38. Ke3 {[%clk
0:00:04.2]} 38... Bc5+ {[%clk 0:00:26.5]} 39. Kf4 {[%clk 0:00:04.2]} 39... Qd6+
{[%clk 0:00:26.4]} 40. Kg5 {[%clk 0:00:03.8]} 40... Be3+ {[%clk 0:00:25.9]} 41.
Kf6 {[%clk 0:00:01.8]} 41... Bd4+ {[%clk 0:00:21.9]} 42. Kg5 {[%clk 0:00:02]}
42... Qe5+ {[%clk 0:00:20.6]} 0-1

[Event "*** Titled Tuesday Blitz"]
[Site "Chess.com"]
[Date "2020.03.03"]
[Round "8"]
[White "iturrizaga"]
[Black "rogapa"]
[Result "0-1"]
[WhiteElo "2945"]
[BlackElo "2762"]
[TimeControl "180+1"]
[EndTime "10:29:44 PST"]
[Termination "rogapa won by resignation"]

1. c4 {[%clk 0:03:00.9]} 1... e5 {[%clk 0:02:59.7]} 2. g3 {[%clk 0:03:01.2]}
2... Nc6 {[%clk 0:02:59.9]} 3. Bg2 {[%clk 0:03:01]} 3... Bc5 {[%clk 0:03:00.3]}
4. e3 {[%clk 0:02:55.9]} 4... a6 {[%clk 0:02:59.9]} 5. Nf3 {[%clk 0:02:54.8]}
5... Ba7 {[%clk 0:02:56.8]} 6. O-O {[%clk 0:02:53.8]} 6... d6 {[%clk 0:02:55.5]}
7. h3 {[%clk 0:02:51.3]} 7... Nf6 {[%clk 0:02:54]} 8. d4 {[%clk 0:02:49.6]} 8...
exd4 {[%clk 0:02:51.3]} 9. exd4 {[%clk 0:02:48]} 9... O-O {[%clk 0:02:51.1]} 10.
Nc3 {[%clk 0:02:47.3]} 10... h6 {[%clk 0:02:50.6]} 11. Qd3 {[%clk 0:02:46.2]}
11... Bd7 {[%clk 0:02:40.6]} 12. a3 {[%clk 0:02:41.9]} 12... Re8 {[%clk
0:02:36.9]} 13. Be3 {[%clk 0:02:27.4]} 13... Ne7 {[%clk 0:02:36.3]} 14. Rae1
{[%clk 0:02:23.3]} 14... Nf5 {[%clk 0:02:28.9]} 15. Bd2 {[%clk 0:02:15.1]} 15...
Rxe1 {[%clk 0:02:27.3]} 16. Rxe1 {[%clk 0:02:10.9]} 16... Qf8 {[%clk 0:02:26.3]}
17. b4 {[%clk 0:02:06.3]} 17... Re8 {[%clk 0:02:24.8]} 18. Rc1 {[%clk
0:01:35.8]} 18... Ne7 {[%clk 0:02:20.3]} 19. Be3 {[%clk 0:01:14.1]} 19... Bf5
{[%clk 0:02:18.7]} 20. Qd1 {[%clk 0:01:07.8]} 20... Bh7 {[%clk 0:02:16.4]} 21.
g4 {[%clk 0:00:48.9]} 21... Ne4 {[%clk 0:02:05.8]} 22. Nd5 {[%clk 0:00:48.6]}
22... Nxd5 {[%clk 0:02:02.8]} 23. cxd5 {[%clk 0:00:49.5]} 23... Bb6 {[%clk
0:02:01.4]} 24. Nh4 {[%clk 0:00:37.7]} 24... Qe7 {[%clk 0:01:21.7]} 25. Nf5
{[%clk 0:00:37.5]} 25... Qf6 {[%clk 0:01:21.6]} 26. Qf3 {[%clk 0:00:30.4]} 26...
Ng5 {[%clk 0:01:20.7]} 27. Qf4 {[%clk 0:00:25.5]} 27... Re4 {[%clk 0:01:09.7]}
28. Qxe4 {[%clk 0:00:12.9]} 28... Nxe4 {[%clk 0:01:08.8]} 29. Bxe4 {[%clk
0:00:13.8]} 29... Bxf5 {[%clk 0:01:03.1]} 30. Bxf5 {[%clk 0:00:13.9]} 30... Qd8
{[%clk 0:00:52.1]} 31. Kg2 {[%clk 0:00:10.5]} 31... g6 {[%clk 0:00:52]} 32. Be4
{[%clk 0:00:10.7]} 32... Kg7 {[%clk 0:00:52.1]} 33. Bf3 {[%clk 0:00:10.3]} 33...
a5 {[%clk 0:00:51.3]} 34. Rc4 {[%clk 0:00:10.1]} 34... axb4 {[%clk 0:00:49.6]}
35. axb4 {[%clk 0:00:08.6]} 35... Qa8 {[%clk 0:00:49.3]} 36. Rc1 {[%clk
0:00:06.6]} 36... Qa3 {[%clk 0:00:47.6]} 37. Rb1 {[%clk 0:00:06.3]} 37... Qc3
{[%clk 0:00:46.8]} 38. b5 {[%clk 0:00:06.2]} 38... Qd3 {[%clk 0:00:42.3]} 39.
Rb4 {[%clk 0:00:04.6]} 39... f5 {[%clk 0:00:38.5]} 40. gxf5 {[%clk 0:00:04]}
40... gxf5 {[%clk 0:00:39.4]} 41. Ra4 {[%clk 0:00:03.4]} 41... Qxb5 {[%clk
0:00:37.7]} 42. Ra8 {[%clk 0:00:03.4]} 42... f4 {[%clk 0:00:35.7]} 43. Bxf4
{[%clk 0:00:02.6]} 43... Bxd4 {[%clk 0:00:35.9]} 44. Bg3 {[%clk 0:00:03.1]}
44... Be5 {[%clk 0:00:34.3]} 45. Rc8 {[%clk 0:00:02.9]} 45... Qc5 {[%clk
0:00:32.4]} 46. Re8 {[%clk 0:00:02.7]} 46... Bxg3 {[%clk 0:00:31.8]} 47. Kxg3
{[%clk 0:00:03.6]} 47... b5 {[%clk 0:00:31.4]} 48. Re7+ {[%clk 0:00:03.7]} 48...
Kf8 {[%clk 0:00:30.9]} 49. Re6 {[%clk 0:00:04.6]} 49... b4 {[%clk 0:00:30.4]}
50. Re4 {[%clk 0:00:04.1]} 50... b3 {[%clk 0:00:29.9]} 51. Rf4+ {[%clk
0:00:04.3]} 51... Kg7 {[%clk 0:00:29.1]} 0-1